bitfinex/quotes_ETHUSD_20240820
["timestamp","ask_amount","ask_price","bid_price","bid_amount"]
[1724163521304,3.82262,2616.1,2615.4,2.3219]
[1724163521470,3.82271,2616.0,2615.4,2.3219]
[1724163521654,3.82212,2616.4,2615.6,3.82311]
[1724163522251,7.64428,2616.4,2615.7,3.82298]
[1724163522471,0.382175,2616.6,2615.8,3.82279]
[1724163522472,8.025835,2616.6,2615.8,3.82279]
[1724163522671,8.025835,2616.6,2615.5,2.4466]
[1724163522672,0.382175,2616.6,2615.9,3.82265]
[1724163522985,3.82154,2616.8,2616.2,2.4625]
[1724163523188,6.82064,2617.4,2616.2,2.4625]
[1724163523359,3.82095,2617.2,2616.5,3.82182]
[1724163523719,3.82095,2617.2,2616.6,3.89816458]
[1724163523855,3.82095,2617.2,2616.6,3.82174]
[1724163524057,3.82067,2617.4,2616.8,3.82132]
[1724163524255,3.82037,2617.6,2616.9,3.89762868]
[1724163524503,3.82037,2617.6,2616.9,3.82122]
[1724163524504,3.82034,2617.6,2616.9,3.82122]
[1724163524655,3.82008,2617.8,2617.0,3.82103]
[1724163524855,3.82008,2617.8,2617.2,3.82085]
[1724163525083,7.64018,2617.8,2617.2,3.82085]
[1724163525302,3.81976,2618.0,2617.4,3.82044]
[1724163525538,0.763926,2618.0,2617.3,2.3619]
[1724163525806,0.05,2619.9,2617.3,2.3619]
[1724163525807,3.81772,2619.4,2617.3,2.3619]
[1724163526101,3.81935,2618.3,2617.4,3.82055]
[1724163526260,3.81935,2618.3,2617.6,3.82026]
[1724163526261,0.381935,2618.2,2617.6,3.82026]
[1724163526623,3.81935,2618.3,2617.7,2.3786]
[1724163526849,3.81931,2618.3,2617.7,2.3786]
[1724163527158,3.81966,2618.1,2617.7,2.3786]
[1724163527358,3.81988,2617.9,2617.7,2.3786]
[1724163527792,3.8194,2618.3,2617.3,2.2694]
[1724163527992,3.82008,2617.8,2617.3,2.2694]
[1724163528195,3.81979,2618.0,2617.3,2.2694]
[1724163528359,3.82013,2617.8,2617.3,2.2694]
[1724163528713,0.38194,2618.2,2617.3,2.2694]
[1724163528714,4.20145,2618.2,2617.6,3.82021]
[1724163529006,3.81906,2618.5,2618.0,2.466]
[1724163529158,3.81878,2618.7,2618.0,6.28562]
[1724163529498,3.81828,2619.0,2618.0,2.466]
[1724163529499,3.81905,2618.5,2618.0,2.466]
[1724163529698,6.22347,2619.6,2618.2,3.81933]
[1724163529868,3.81848,2618.9,2618.2,7.63865]
[1724163530069,3.81828,2619.0,2618.2,3.81933]
[1724163530388,3.81857,2618.8,2618.2,3.81933]
[1724163530617,3.81884,2618.6,2618.0,6.28562]
[1724163530755,3.81813,2619.1,2618.2,3.81934]
[1724163530959,3.81834,2619.0,2618.3,3.81917]
[1724163531200,3.81672,2620.1,2618.4,6.27993]
[1724163531201,3.81812,2619.1,2618.4,6.27993]
[1724163531596,3.81725,2619.7,2618.4,2.4609]
[1724163531793,3.81848,2618.9,2618.4,2.4609]
[1724163532012,3.81898,2618.5,2617.8,3.81988]
[1724163532318,3.81898,2618.5,2617.9,2.423]
[1724163532684,3.81921,2618.4,2617.9,2.423]
[1724163532888,3.81856,2618.8,2617.9,2.423]
[1724163532889,3.81871,2618.7,2617.9,2.423]
[1724163533219,3.81856,2618.8,2617.9,2.423]
[1724163533220,7.63928,2618.1,2617.9,2.423]
[1724163533382,3.8196,2618.1,2617.9,2.423]
[1724163533710,3.8197,2618.0,2617.9,2.423]
[1724163533928,3.8197,2618.0,2617.1,2.423]
[1724163533929,0.76393,2618.0,2617.1,2.423]
[1724163534103,3.82023,2617.7,2617.1,6.24397]
[1724163534303,3.81991,2617.9,2617.2,3.8208]
[1724163534544,3.8201,2617.8,2617.1,10.06486]
[1724163534703,6.81856,2618.8,2617.3,3.82065]
[1724163534704,3.81957,2618.1,2617.3,3.82065]
[1724163534908,3.0,2618.8,2617.5,3.82035]
[1724163534909,3.81952,2618.2,2617.5,3.82035]
[1724163535132,7.63848,2618.4,2617.5,3.82036]
[1724163535334,3.81921,2618.4,2617.6,10.06337]
[1724163535541,3.81929,2618.3,2617.3,2.3725]
[1724163535705,3.8199,2617.9,2617.3,2.3725]
[1724163536157,4.201389,2618.2,2617.5,3.82041]
[1724163536312,3.81973,2618.0,2617.5,3.82041]
[1724163536659,3.81923,2618.4,2617.7,7.64018]
[1724163536823,4.200298,2618.9,2617.7,7.64018]
[1724163536824,3.0,2618.8,2617.8,2.3725]
[1724163537011,3.81914,2618.4,2617.8,2.3725]
[1724163537204,3.8195,2618.2,2617.8,2.3725]
[1724163537540,0.381848,2618.9,2617.8,6.811688]
[1724163537541,3.8189,2618.6,2617.8,6.811688]
[1724163537734,3.81907,2618.5,2617.9,3.81983]
[1724163538141,3.81964,2618.1,2617.8,2.3725]
[1724163538347,3.8192,2618.4,2617.8,2.3725]
[1724163538577,3.8192,2618.4,2617.8,2.60975]
[1724163538757,3.8194,2618.3,2617.8,2.3725]
[1724163539086,3.81936,2618.3,2617.8,2.3725]
[1724163539591,11.96273,2619.4,2617.8,2.3725]
[1724163539592,8.145,2619.4,2617.8,2.3725]
[1724163539888,2.289,2620.1,2618.5,2.2592]
[1724163539889,3.81833,2619.0,2618.5,2.2592]
[1724163540041,3.81896,2618.6,2617.6,2.2592]
[1724163540240,3.81951,2618.2,2617.6,6.07935]
[1724163540445,3.8192,2618.4,2617.7,3.82007]
[1724163540672,3.82013,2617.8,2617.6,2.2592]
[1724163540873,3.81978,2618.0,2617.6,2.2592]
[1724163541092,3.81957,2618.1,2617.6,2.2592]
[1724163541245,3.81917,2618.4,2617.6,6.30539]
[1724163541448,6.16003,2620.4,2618.0,2.3287]
[1724163541661,3.8176,2619.5,2618.6,2.3287]
[1724163541897,3.81868,2618.7,2618.6,2.3287]
[1724163542142,3.81733,2619.7,2617.6,0.22592]
[1724163542143,3.81892,2618.6,2618.1,2.3287]
[1724163542366,2.8714429,2619.7,2618.1,2.3287]
[1724163542367,3.81924,2618.4,2618.1,2.3287]
[1724163542568,3.81844,2618.9,2618.1,2.3287]
[1724163542569,3.81941,2618.2,2618.1,2.3287]
[1724163543188,3.81916,2618.4,2618.1,2.3287]
[1724163543388,7.63818,2618.5,2618.1,2.3287]
[1724163543557,3.8193,2618.3,2618.1,2.3287]
[1724163543759,3.81913,2618.4,2618.1,2.3287]
[1724163544075,3.81941,2618.2,2617.7,2.3338]
[1724163544740,3.81994,2617.9,2617.7,2.3338]
[1724163545075,3.82066,2617.4,2616.9,2.3819]
[1724163545272,3.82044,2617.5,2616.9,2.3819]
[1724163545487,0.381994,2617.9,2616.9,2.3819]
[1724163545689,15.18,2618.6,2616.9,2.3819]
[1724163545690,2.4659,2618.5,2616.9,6.20319]
[1724163545873,3.81943,2618.2,2616.9,2.3819]
[1724163546074,3.82025,2617.7,2616.9,6.20307]
[1724163546372,3.82025,2617.7,2616.9,2.3819]
[1724163546700,3.0,2618.3,2616.9,3.384393]
[1724163546915,3.82029,2617.6,2616.9,2.3819]
[1724163547460,3.81963,2618.1,2616.9,2.3819]
[1724163547461,3.82061,2617.4,2616.9,2.3819]
[1724163547661,7.64193,2617.2,2616.9,2.3819]
[1724163547909,3.82091,2617.2,2616.9,2.3819]
[1724163548463,3.82026,2617.7,2616.5,2.4355]
[1724163548659,3.82155,2616.8,2616.5,2.4355]
[1724163548890,3.82118,2617.0,2616.1,2.4355]
[1724163549168,3.82225,2616.3,2616.1,2.4355]
[1724163549360,3.82242,2616.2,2615.7,2.4995]
[1724163549588,3.82264,2616.0,2615.7,2.4995]
[1724163549797,3.82278,2615.9,2615.2,6.24013]
[1724163550012,3.82332,2615.6,2615.2,2.4164]
[1724163550227,6.30699,2616.6,2615.2,2.4164]
[1724163550228,3.82286,2615.9,2615.2,2.4164]
[1724163550380,3.82288,2615.9,2615.2,6.24015]
[1724163550586,3.0,2616.4,2614.6,3.82463]
[1724163550587,3.82346,2615.5,2614.6,3.82463]
[1724163550786,3.8235,2615.5,2614.7,6.24078]
[1724163551090,3.82349,2615.5,2614.8,0.624078]
[1724163551417,3.82389,2615.2,2614.7,2.4164]
[1724163551728,3.82366,2615.3,2614.7,2.4164]
[1724163552054,2.2736,2615.3,2613.9,3.82569]
[1724163552213,3.8248,2614.6,2613.9,3.82569]
[1724163552426,3.82504,2614.4,2613.8,2.3268]
[1724163552718,3.82513,2614.3,2613.8,2.3268]
[1724163552933,3.8241,2615.0,2613.8,2.3268]
[1724163553231,3.8241,2615.0,2613.5,3.82623]
[1724163553232,3.82522,2614.3,2613.3,6.11603]
[1724163553436,3.82522,2614.3,2613.5,3.82625]
[1724163553437,3.82528,2614.2,2613.5,3.82625]
[1724163553644,3.82459,2614.7,2614.0,2.3325]
[1724163553993,3.82459,2614.7,2614.1,0.07650029]
[1724163554192,3.82482,2614.5,2614.0,2.3325]
[1724163554520,3.82492,2614.5,2614.0,2.3325]
[1724163554721,3.82455,2614.7,2614.0,2.3325]
[1724163554925,3.82422,2615.0,2614.0,2.3325]
[1724163555086,3.825,2614.4,2614.0,2.3325]
[1724163555491,3.82515,2614.3,2614.0,2.3325]
[1724163555691,3.825,2614.4,2614.0,2.3325]
[1724163555931,3.82472,2614.6,2614.0,2.3325]
[1724163556102,7.64896,2614.8,2614.1,3.90188965]
[1724163556289,7.64896,2614.8,2614.1,0.07649965]
[1724163556290,3.82453,2614.7,2614.1,0.07649965]
[1724163556490,3.82448,2614.8,2614.0,2.3325]
[1724163556745,3.82448,2614.8,2613.4,3.82642]
[1724163556746,3.8254,2614.1,2613.4,2.2627]
[1724163556890,3.8254,2614.1,2613.4,3.254296]
[1724163557714,3.82559,2614.0,2613.4,3.254296]
[1724163557938,3.82549,2614.1,2613.4,2.2627]
[1724163558092,3.82588,2613.8,2613.4,2.2627]
[1724163558590,3.82562,2614.0,2613.4,2.2627]
[1724163558791,3.82565,2614.0,2613.4,2.871627]
[1724163558986,3.82529,2614.2,2613.4,2.2627]
[1724163559234,3.82483,2614.5,2613.8,3.82572]
[1724163559459,3.82445,2614.8,2613.5,0.07650142]
[1724163559622,5.38951803,2616.2,2614.3,3.82501]
[1724163559623,3.82421,2615.0,2614.3,3.82501]
[1724163559942,2.3933,2615.9,2614.2,2.2581]
[1724163559943,4.206731,2614.9,2614.2,2.2581]
[1724163560124,6.21617,2615.9,2614.3,0.07648627]
[1724163560125,3.824,2615.1,2614.3,0.07648627]
[1724163560347,3.824,2615.1,2614.4,3.82485]
[1724163560506,3.824,2615.1,2614.5,0.07648493]
[1724163560727,3.824,2615.1,2614.4,3.82485]
[1724163560728,3.8241,2615.0,2614.4,3.82485]
[1724163561037,2.3933,2615.9,2614.4,3.82485]
[1724163561038,3.82373,2615.3,2614.4,3.82495]
[1724163561331,11.96699,2616.5,2614.9,3.82411]
[1724163561534,2.3798,2616.7,2614.9,3.82411]
[1724163561535,3.82331,2615.6,2615.0,2.4532]
[1724163561739,6.20147,2616.7,2615.0,2.4532]
[1724163561740,3.82298,2615.8,2615.2,3.82377]
[1724163562433,3.8231,2615.7,2615.0,6.27717]
[1724163562637,3.82325,2615.6,2615.0,6.27717]
[1724163563020,3.82298,2615.8,2615.1,3.82391]
[1724163563240,3.82265,2616.0,2615.2,3.82379]
[1724163563388,3.82146,2616.8,2615.4,6.20646]
[1724163563593,6.22218,2617.2,2615.5,4.37328]
[1724163563594,3.82242,2616.2,2615.5,4.37328]
[1724163563799,3.82206,2616.4,2615.5,4.37328]
[1724163564051,3.82208,2616.4,2615.5,1.225628]
[1724163564204,3.82092,2617.2,2615.5,0.55]
[1724163564408,3.82092,2617.2,2615.6,3.82317]
[1724163564409,3.82223,2616.3,2615.6,3.82317]
[1724163564645,3.82223,2616.3,2615.7,3.82305]
[1724163564872,3.82146,2616.8,2615.5,3.82329]
[1724163565076,3.82219,2616.3,2615.6,0.55]
[1724163565260,3.82249,2616.1,2615.6,0.55]
[1724163565434,3.82219,2616.3,2615.6,0.55]
[1724163565435,3.82219,2616.3,2615.6,5.048734]
[1724163565628,3.82219,2616.3,2615.6,1.225624]
[1724163565847,3.8225,2616.1,2615.6,0.675624]
[1724163566132,3.82212,2616.4,2615.7,3.82305]
[1724163566474,6.8212,2617.0,2615.7,0.8321954]
[1724163566675,3.82251,2616.1,2615.7,0.8321954]
[1724163566879,3.82224,2616.3,2615.7,0.8321954]
[1724163567096,3.82141,2616.9,2616.1,3.82246]
[1724163567381,3.82141,2616.9,2616.2,4.37225]
[1724163567747,3.82141,2616.9,2616.2,0.55]
[1724163567967,3.82076,2617.3,2615.9,6.1173]
[1724163567968,3.82185,2616.6,2615.9,9.93999]
[1724163568135,3.82185,2616.6,2616.0,0.55]
[1724163568136,3.82206,2616.4,2616.0,0.55]
[1724163568335,3.82181,2616.6,2616.0,0.55]
[1724163568536,3.82153,2616.8,2616.1,3.82239]
[1724163568755,9.31556665,2618.6,2616.0,0.83446]
[1724163568756,3.82047,2617.5,2616.9,3.82121]
[1724163568971,3.81911,2618.5,2616.0,0.83446]
[1724163568972,3.82068,2617.4,2616.5,2.3714]
[1724163569279,3.82033,2617.6,2616.9,3.82123]
[1724163569478,3.81989,2617.9,2616.8,3.82138]
[1724163569705,3.82002,2617.8,2617.2,3.82078]
[1724163569912,3.81946,2618.2,2616.9,6.914933]
[1724163570208,3.81946,2618.2,2617.1,3.82093]
[1724163570209,3.82024,2617.7,2617.1,3.82093]
[1724163570359,6.61872742,2618.8,2616.9,3.093693]
[1724163570360,3.82052,2617.5,2616.9,3.093693]
[1724163570700,3.81986,2617.9,2617.0,0.6915053]
[1724163570913,3.8203,2617.6,2617.0,0.6915053]
[1724163571261,3.82009,2617.8,2617.0,0.6915053]
[1724163571459,3.81979,2618.0,2617.3,3.82072]
[1724163571727,4.34803742,2618.7,2617.0,0.0763977]
[1724163571728,3.81889,2618.6,2617.7,6.28265]
[1724163572005,3.81915,2618.4,2617.8,0.55]
[1724163572216,1.61075553,2620.3,2617.7,2.4626]
[1724163572363,3.81951,2618.2,2617.7,2.4626]
[1724163572563,3.81958,2618.1,2617.7,2.4626]
[1724163572794,3.81943,2618.2,2617.7,2.4626]
[1724163573011,3.81943,2618.2,2617.8,0.55]
[1724163573177,3.81943,2618.2,2617.7,2.4626]
[1724163573378,3.8196,2618.1,2617.7,2.4626]
[1724163573579,3.8194,2618.3,2617.7,2.4626]
[1724163573893,3.81907,2618.5,2617.8,4.36987]
[1724163574082,3.81913,2618.4,2617.8,4.36987]
[1724163574283,3.81907,2618.5,2617.8,4.36987]
[1724163574599,0.01121232,2618.1,2617.8,4.36987]
[1724163574796,0.01121232,2618.1,2618.0,10.1072]
[1724163574997,0.01121232,2618.1,2618.0,4.08352]
[1724163575201,0.01121232,2618.1,2618.0,3.0178]
[1724163575414,3.81891,2618.6,2618.0,3.0178]
[1724163575415,3.81922,2618.4,2618.0,3.0178]
[1724163575723,3.81862,2618.8,2618.0,2.4678]
[1724163575870,3.81884,2618.6,2618.1,0.55]
[1724163576281,3.81916,2618.4,2618.0,2.4678]
[1724163576524,3.81801,2619.2,2618.1,0.0763791]
[1724163576669,3.81865,2618.8,2618.2,3.81936]
[1724163576872,3.8185,2618.9,2618.3,4.36924]
[1724163577126,3.81819,2619.1,2618.4,6.17679]
[1724163577415,0.2403309,2619.6,2618.4,6.17679]
[1724163577416,3.81784,2619.3,2618.6,3.81871]
[1724163577582,3.81784,2619.3,2618.5,0.55]
[1724163577583,3.81813,2619.1,2618.5,0.55]
[1724163577784,3.81795,2619.2,2618.5,0.55]
[1724163577989,7.63673,2619.0,2618.5,0.55]
[1724163578191,3.81835,2619.0,2618.5,0.55]
[1724163578392,7.63607,2619.2,2618.6,4.491409]
[1724163578704,3.81745,2619.6,2618.8,6.24745]
[1724163578905,3.81745,2619.6,2618.9,4.3683]
[1724163579086,3.81749,2619.6,2619.0,3.81815]
[1724163579432,3.81746,2619.6,2619.1,0.55]
[1724163579644,0.127109,2619.8,2618.8,6.24745]
[1724163579857,3.81825,2619.0,2618.8,2.429]
[1724163580142,3.81839,2618.9,2618.8,2.429]
[1724163580350,3.81839,2618.9,2618.4,3.81899]
[1724163580351,3.81814,2619.1,2618.3,2.3816]
[1724163580506,3.81814,2619.1,2618.5,0.55]
[1724163580859,3.127109,2619.8,2618.8,2.3816]
[1724163581004,3.81783,2619.3,2618.8,2.3816]
[1724163581200,3.8173,2619.7,2618.9,0.0763554]
[1724163581450,3.81742,2619.6,2618.8,2.3816]
[1724163581752,3.81742,2619.6,2618.9,4.36829]
[1724163582048,3.81742,2619.6,2619.0,3.81825]
[1724163582250,3.81742,2619.6,2618.9,5.043279]
[1724163582414,3.81793,2619.3,2618.9,0.55]
[1724163582747,3.818,2619.2,2618.8,2.3816]
[1724163583044,3.818,2619.2,2618.1,0.3826]
[1724163583045,3.81842,2618.9,2618.4,2.4931]
[1724163583706,3.81818,2619.1,2618.4,2.4931]
[1724163583947,3.81818,2619.1,2618.5,7.63774]
[1724163584104,3.81818,2619.1,2618.5,4.831954]
[1724163584673,7.63637,2619.1,2618.5,4.831954]
[1724163584836,3.81818,2619.1,2618.5,4.831954]
[1724163585403,3.81818,2619.1,2618.5,8.650834]
[1724163585920,3.81818,2619.1,2618.5,4.831954]
[1724163586122,3.81787,2619.3,2618.7,3.81866]
[1724163586336,3.81787,2619.3,2618.8,4.36852]
[1724163586742,3.81787,2619.3,2618.8,0.55]
[1724163586921,3.81787,2619.3,2618.6,4.5513154]
[1724163587257,3.81787,2619.3,2618.7,4.36868]
[1724163587458,3.81761,2619.5,2618.9,3.81828]
[1724163587655,3.81728,2619.7,2619.1,3.81799]
[1724163587656,7.6346,2619.7,2619.1,3.81799]
[1724163587865,7.6346,2619.7,2618.8,2.3057]
[1724163587866,3.81752,2619.5,2618.8,2.3057]
[1724163588014,0.127109,2619.8,2619.2,3.81785]
[1724163588209,3.944289,2619.8,2619.2,8.263125]
[1724163588515,3.944189,2619.8,2619.3,0.55]
[1724163588712,3.81723,2619.7,2619.3,0.55]
[1724163588921,3.81723,2619.7,2619.0,6.27428]
[1724163588922,3.81753,2619.5,2619.0,2.4561]
[1724163589127,3.8174,2619.6,2619.1,0.55]
[1724163589353,3.81752,2619.5,2619.1,0.55]
[1724163589509,3.81792,2619.3,2619.0,2.4561]
[1724163589723,3.81796,2619.2,2619.0,2.4561]
[1724163589921,3.8179,2619.3,2619.0,2.4561]
[1724163590671,3.944239,2619.8,2619.0,2.4561]
[1724163590672,3.81732,2619.7,2619.1,3.89444344]
[1724163591166,3.81732,2619.7,2619.1,3.8181]
[1724163591474,0.127109,2619.8,2619.0,6.51986]
[1724163591475,0.127109,2619.8,2619.3,3.81768]
[1724163591668,0.127109,2619.8,2619.4,0.55]
[1724163591974,0.127109,2619.8,2619.3,3.81771]
[1724163592151,0.127109,2619.8,2619.4,4.36756]
[1724163592329,0.127109,2619.8,2619.0,2.70171]
[1724163592330,0.127109,2619.8,2619.1,3.81799]
[1724163592519,3.81724,2619.7,2619.2,0.55]
[1724163592968,3.81746,2619.6,2619.1,4.3681]
[1724163593167,3.81753,2619.5,2619.1,0.55]
[1724163593721,7.63514,2619.5,2619.1,0.55]
[1724163593953,3.81731,2619.7,2619.1,0.55]
[1724163594140,3.81776,2619.4,2619.0,2.4561]
[1724163594336,7.63532,2619.5,2619.0,6.27434]
[1724163594535,3.81766,2619.5,2619.0,2.4561]
[1724163594815,3.81763,2619.5,2619.0,2.4561]
[1724163595122,3.81781,2619.3,2619.0,2.4561]
[1724163595294,3.81763,2619.5,2619.0,2.4561]
[1724163595702,3.81763,2619.5,2619.0,6.27431]
[1724163595914,3.81738,2619.6,2619.0,10.719881]
[1724163596131,3.81732,2619.7,2619.2,3.8179]
[1724163596280,0.127109,2619.8,2619.1,0.55]
[1724163596485,7.63523,2619.5,2619.1,0.55]
[1724163596813,7.63523,2619.5,2619.0,2.4561]
[1724163596814,3.81774,2619.4,2619.0,2.4561]
[1724163597197,3.81761,2619.5,2619.0,2.4561]
[1724163598098,0.127109,2619.8,2619.0,2.4561]
[1724163598099,3.81786,2619.3,2619.0,2.4561]
[1724163598302,3.81853,2618.9,2618.1,6.22906]
[1724163598523,3.81857,2618.8,2618.1,6.22906]
[1724163598704,3.81915,2618.4,2618.1,2.4096]
[1724163599023,3.0,2619.4,2617.7,3.037886]
[1724163599335,3.81987,2617.9,2617.7,2.4096]
[1724163599536,3.82,2617.8,2617.7,2.4096]
[1724163600084,3.8198,2618.0,2617.7,2.4096]
[1724163600320,3.81948,2618.2,2617.7,2.4096]
[1724163600502,3.0,2618.9,2616.9,3.82118]
[1724163600720,3.82068,2617.4,2616.8,2.346]
[1724163601035,3.81991,2617.9,2616.8,2.346]
[1724163601036,3.82118,2617.0,2616.8,2.346]
[1724163601335,3.82169,2616.7,2616.4,2.346]
[1724163601635,7.64339,2616.7,2616.4,2.346]
[1724163601845,3.82175,2616.6,2615.8,2.4124]
[1724163601987,3.8221,2616.4,2615.9,0.62354]
[1724163602188,3.82236,2616.2,2615.9,0.62354]
[1724163602389,3.8218,2616.6,2615.9,3.82265]
[1724163602586,3.8218,2616.6,2615.8,6.23521]
[1724163602819,3.82208,2616.4,2615.8,6.23521]
[1724163603435,3.8218,2616.6,2615.9,3.82276]
[1724163603686,3.82149,2616.8,2615.8,2.4124]
[1724163603687,3.82234,2616.2,2615.8,2.4124]
[1724163603936,3.82182,2616.6,2615.9,3.82267]
[1724163604240,6.82075,2617.3,2615.8,2.65364]
[1724163604241,3.82216,2616.4,2615.8,2.65364]
[1724163604988,3.82139,2616.9,2615.8,2.65364]
[1724163604989,3.82246,2616.2,2615.8,2.4124]
[1724163605307,3.82296,2615.8,2615.4,2.4339]
[1724163605506,3.82186,2616.6,2614.9,2.4339]
[1724163605507,3.82339,2615.5,2614.9,2.4339]
[1724163605712,3.8235,2615.4,2614.9,2.4339]
[1724163605911,3.82385,2615.2,2614.9,2.4339]
[1724163606121,3.82355,2615.4,2614.9,2.4339]
[1724163606450,3.82349,2615.5,2614.9,2.4339]
[1724163606968,7.64601,2615.8,2615.0,3.82398]
[1724163607280,3.82321,2615.6,2614.9,6.25799]
[1724163607412,3.82321,2615.6,2615.0,3.82408]
[1724163607609,3.82267,2616.0,2615.0,0.625798]
[1724163607805,6.21982,2616.9,2615.7,2.2752]
[1724163608010,3.82277,2616.0,2615.3,2.2752]
[1724163608246,3.82254,2616.1,2615.3,2.2752]
[1724163608450,3.82254,2616.1,2615.4,3.82341]
[1724163608823,3.82254,2616.1,2615.5,0.55]
[1724163609028,3.82292,2615.8,2615.3,2.2752]
[1724163609234,3.82312,2615.7,2615.3,2.2752]
[1724163609556,0.49179673,2616.7,2615.3,2.50272]
[1724163609557,3.82251,2616.1,2615.3,2.50272]
[1724163609750,3.82264,2616.0,2615.3,6.09874]
[1724163609958,3.82288,2615.9,2615.3,2.2752]
[1724163610362,3.82339,2615.5,2614.9,6.30971]
[1724163610665,3.82339,2615.5,2614.9,2.4856]
[1724163611023,3.82359,2615.4,2614.9,2.4856]
[1724163611219,3.82396,2615.1,2614.9,2.4856]
[1724163611424,3.82396,2615.1,2614.7,19.54]
[1724163612364,3.82409,2615.0,2614.5,2.4435]
[1724163612575,3.0,2615.9,2614.0,7.27]
[1724163612576,3.82456,2614.7,2614.0,3.82544]
[1724163612727,3.82483,2614.5,2614.0,2.2649]
[1724163612922,3.82513,2614.3,2614.0,2.2649]
[1724163613123,3.82434,2614.9,2614.0,2.2649]
[1724163613323,3.82468,2614.6,2614.0,2.49585]
[1724163613563,2.3886,2615.7,2614.3,3.82511]
[1724163613826,2.3886,2615.7,2614.0,2.2649]
[1724163613827,3.82389,2615.2,2614.5,3.82469]
[1724163614038,3.8236,2615.4,2614.6,0.07647907]
[1724163614236,5.3886,2615.7,2614.5,3.82469]
[1724163614436,3.82316,2615.7,2615.0,3.824]
[1724163614669,3.82351,2615.4,2614.6,6.27306]
[1724163614826,3.82351,2615.4,2614.7,0.55]
[1724163615226,3.82351,2615.4,2614.6,6.27298]
[1724163615655,3.82395,2615.1,2614.6,2.4484]
[1724163615861,3.82419,2615.0,2614.6,2.4484]
[1724163616047,3.82428,2614.9,2614.6,2.4484]
[1724163616628,3.82439,2614.8,2614.2,3.82515]
[1724163616826,3.82428,2614.9,2614.3,4.3751]
[1724163617025,3.82428,2614.9,2614.2,2.2564]
[1724163617026,3.82462,2614.7,2614.2,2.2564]
[1724163617486,3.82462,2614.7,2613.9,0.0446]
[1724163617487,3.82495,2614.5,2613.9,0.0446]
[1724163617685,3.82519,2614.3,2613.9,0.0446]
[1724163617974,3.82505,2614.4,2613.9,0.0446]
[1724163618751,3.81108,2614.5,2613.9,0.0446]
[1724163619256,3.81108,2614.5,2613.9,3.87028]
[1724163619257,7.636,2614.5,2613.9,3.87028]
[1724163619473,7.636,2614.5,2613.9,0.0446]
[1724163619474,3.81108,2614.5,2613.9,0.0446]
[1724163619857,3.8252,2614.3,2613.9,0.0446]
[1724163620457,3.82448,2614.8,2613.9,0.0446]
[1724163620458,3.82555,2614.0,2613.9,0.0446]
[1724163620787,3.82534,2614.2,2613.9,0.0446]
[1724163621553,3.82504,2614.4,2613.9,0.0446]
[1724163621753,3.82472,2614.6,2614.0,3.82543]
[1724163621956,3.82472,2614.6,2614.0,3.82552]
[1724163622154,3.82497,2614.4,2613.9,3.87017]
[1724163622361,3.82536,2614.2,2613.9,0.0446]
[1724163622557,7.6022,2614.0,2613.9,0.0446]
[1724163622770,11.42775,2614.0,2613.9,0.0446]
[1724163623397,3.0,2614.6,2613.9,0.0446]
[1724163623593,3.82522,2614.3,2613.9,0.0446]
[1724163623800,3.82491,2614.5,2613.9,0.0446]
[1724163624098,3.764827,2614.9,2613.9,0.0446]
[1724163624250,3.82528,2614.2,2613.9,0.0446]
[1724163624443,3.82521,2614.3,2613.9,0.0446]
[1724163625000,3.82487,2614.5,2613.9,0.0446]
[1724163625293,3.8253,2614.2,2613.9,0.0446]
[1724163625444,2.4385,2614.7,2613.9,0.0446]
[1724163625647,2.4385,2614.7,2611.5,19.54]
[1724163625648,3.82746,2612.7,2612.2,2.2563]
[1724163625879,3.82746,2612.7,2611.9,3.82853]
[1724163625880,3.82746,2612.7,2612.0,2.2563]
[1724163626049,3.82674,2613.2,2612.5,3.82772]
[1724163626249,3.82682,2613.2,2612.6,2.2563]
[1724163626602,3.82653,2613.4,2612.7,0.22563]
[1724163626802,3.82618,2613.6,2612.7,0.22563]
[1724163626803,3.82618,2613.6,2612.9,3.82716]
[1724163626950,3.82591,2613.8,2613.0,3.82692]
[1724163627145,3.82641,2613.5,2612.7,0.22563]
[1724163627344,0.56643622,2614.0,2612.7,0.22563]
[1724163627651,6.29055,2614.4,2612.7,0.22563]
[1724163627652,3.82656,2613.4,2612.7,0.22563]
[1724163627847,3.82542,2614.1,2612.8,4.37719]
[1724163627848,3.82617,2613.6,2612.8,4.37719]
[1724163628047,3.82617,2613.6,2612.9,3.82714]
[1724163628317,3.0,2614.3,2613.1,3.82672]
[1724163628447,3.0,2614.3,2612.9,3.82712]
[1724163628448,3.82601,2613.7,2612.9,3.82712]
[1724163628648,3.82615,2613.6,2612.9,3.82712]
[1724163628850,3.56643622,2614.3,2612.6,2.2563]
[1724163629064,3.82745,2612.7,2612.6,2.2563]
[1724163629346,2.4939,2613.8,2612.1,3.82823]
[1724163629347,3.82722,2612.9,2612.1,3.82823]
[1724163629566,3.82711,2613.0,2612.2,6.26665]
[1724163629858,7.65362,2613.2,2612.2,6.26675]
[1724163630047,3.82677,2613.2,2612.3,0.626675]
[1724163630399,6.82611,2613.7,2612.6,2.4386]
[1724163630550,3.82638,2613.5,2612.7,3.82733]
[1724163630894,3.82603,2613.7,2612.6,2.4386]
[1724163631095,3.82531,2614.2,2613.2,2.4386]